bitfinex/quotes_BTCUSD_20251024
["timestamp","ask_amount","ask_price","bid_price","bid_amount"]
[1761341196278,0.94659777,110980.0,110970.0,0.00089183]
[1761341198468,0.97601695,110980.0,110970.0,0.00089183]
[1761341199919,1.40198996,110980.0,110970.0,0.00089183]
[1761341200124,4.06742385,110980.0,110970.0,0.00089183]
[1761341201589,4.42627951,110980.0,110970.0,0.00089183]
[1761341203556,4.42627951,110980.0,110970.0,1e-08]
[1761341203821,4.46865523,110980.0,110970.0,1e-08]
[1761341204115,4.47226575,110980.0,110970.0,1e-08]
[1761341204337,4.51580661,110980.0,110970.0,1e-08]
[1761341204793,4.31010599,110980.0,110970.0,1e-08]
[1761341205001,4.49031864,110980.0,110970.0,1e-08]
[1761341205420,4.48831864,110980.0,110970.0,1e-08]
[1761341205822,4.49131864,110980.0,110970.0,1e-08]
[1761341207255,4.58611864,110980.0,110970.0,1e-08]
[1761341214720,4.59421236,110980.0,110970.0,1e-08]
[1761341214924,4.26449529,110980.0,110970.0,1e-08]
[1761341216466,4.29687102,110980.0,110970.0,1e-08]
[1761341216863,4.61260661,110980.0,110970.0,1e-08]
[1761341217164,4.60860661,110980.0,110970.0,1e-08]
[1761341217399,4.61060661,110980.0,110970.0,1e-08]
[1761341217604,4.61660661,110980.0,110970.0,1e-08]
[1761341218853,4.63463661,110980.0,110970.0,1e-08]
[1761341219060,3.57641115,110970.0,110960.0,1e-08]
[1761341219313,5.20148741,110970.0,110960.0,1e-08]
[1761341219614,4.53235519,110970.0,110960.0,1e-08]
[1761341220200,4.53335519,110970.0,110960.0,1e-08]
[1761341220523,4.53635519,110970.0,110960.0,1e-08]
[1761341220885,4.63115519,110970.0,110960.0,1e-08]
[1761341221064,4.6392502,110970.0,110960.0,1e-08]
[1761341221270,4.64286111,110970.0,110960.0,1e-08]
[1761341224836,4.65904898,110970.0,110960.0,1e-08]
[1761341226458,4.61048538,110970.0,110960.0,1e-08]
[1761341226730,0.85939358,110950.0,110940.0,0.0004]
[1761341226880,0.85939358,110950.0,110940.0,0.00054639]
[1761341226881,4.21059701,110950.0,110940.0,0.00054639]
[1761341228505,4.21964688,110950.0,110940.0,0.00054639]
[1761341228710,4.22058686,110950.0,110940.0,0.00054639]
[1761341229097,4.28698253,110950.0,110940.0,0.00054639]
[1761341229372,4.28698253,110950.0,110940.0,0.00154639]
[1761341230560,4.37680154,110950.0,110940.0,0.00154639]
[1761341231930,4.71183764,110950.0,110940.0,0.00154639]
[1761341233132,4.71283764,110950.0,110940.0,0.00054639]
[1761341233308,4.71583764,110950.0,110940.0,0.00054639]
[1761341234474,4.71483764,110950.0,110940.0,0.00054639]
[1761341234688,4.38080154,110950.0,110940.0,0.00054639]
[1761341239482,4.71583764,110950.0,110940.0,0.00054639]
[1761341239788,4.38080154,110950.0,110940.0,0.00054639]
[1761341241255,4.41318185,110950.0,110940.0,0.00054639]
[1761341245224,4.59362763,110950.0,110940.0,0.00054639]
[1761341245829,4.79362763,110950.0,110940.0,0.00054639]
[1761341247203,4.7693424,110950.0,110940.0,0.00054639]
[1761341247863,4.8641424,110950.0,110940.0,0.00054639]
[1761341248019,4.7693424,110950.0,110940.0,0.00054639]
[1761341250442,4.81791287,110950.0,110940.0,0.00054639]
[1761341263311,4.82152394,110950.0,110940.0,0.00054639]
[1761341263891,4.81152395,110950.0,110940.0,0.00054639]
[1761341264091,4.82152394,110950.0,110940.0,0.00054639]
[1761341265983,4.6139021,110950.0,110940.0,0.00054639]
[1761341266261,4.79416347,110950.0,110940.0,1e-08]
[1761341270461,4.76980953,110950.0,110940.0,1e-08]
[1761341270703,4.7941657,110950.0,110940.0,1e-08]
[1761341270898,4.3960857,110950.0,110940.0,1e-08]
[1761341271269,4.7940857,110950.0,110940.0,1e-08]
[1761341271613,4.3960857,110950.0,110940.0,1e-08]
[1761341271813,4.7363657,110950.0,110940.0,1e-08]
[1761341271959,4.7940857,110950.0,110940.0,1e-08]
[1761341272214,4.78408571,110950.0,110940.0,1e-08]
[1761341272410,4.7940857,110950.0,110940.0,1e-08]
[1761341272612,4.7363657,110950.0,110940.0,1e-08]
[1761341272821,4.7940857,110950.0,110940.0,1e-08]
[1761341274386,4.78408571,110950.0,110940.0,1e-08]
[1761341275214,4.38608571,110950.0,110940.0,1e-08]
[1761341275401,4.78408571,110950.0,110940.0,1e-08]
[1761341276003,4.80830001,110950.0,110940.0,1e-08]
[1761341276590,4.41030001,110950.0,110940.0,1e-08]
[1761341276792,4.80830001,110950.0,110940.0,1e-08]
[1761341277222,4.41030001,110950.0,110940.0,1e-08]
[1761341277383,4.80826001,110950.0,110940.0,1e-08]
[1761341278455,4.41030001,110950.0,110940.0,1e-08]
[1761341278630,4.80826001,110950.0,110940.0,1e-08]
[1761341279875,4.41030001,110950.0,110940.0,1e-08]
[1761341280176,4.80826001,110950.0,110940.0,1e-08]
[1761341282634,4.75054001,110950.0,110940.0,1e-08]
[1761341282868,4.80826001,110950.0,110940.0,1e-08]
[1761341283217,4.41030001,110950.0,110940.0,1e-08]
[1761341283483,4.79648228,110950.0,110940.0,1e-08]
[1761341283682,4.57849291,110940.0,110930.0,1e-08]
[1761341283901,0.55649241,110920.0,110910.0,0.0004]
[1761341284117,4.57458397,110920.0,110910.0,0.00089122]
[1761341285194,4.55022465,110920.0,110910.0,0.00089122]
[1761341286521,4.55022465,110920.0,110910.0,0.00189122]
[1761341286753,4.55022465,110920.0,110910.0,0.01130997]
[1761341290827,4.21523876,110920.0,110910.0,0.01130997]
[1761341302694,3.99771876,110920.0,110910.0,0.01130997]
[1761341302849,4.21519876,110920.0,110910.0,0.01130997]
[1761341303043,4.15747876,110920.0,110910.0,0.01130997]
[1761341303355,3.99771876,110920.0,110910.0,0.01130997]
[1761341303555,4.21519876,110920.0,110910.0,0.01130997]
[1761341303804,3.82234667,110920.0,110910.0,0.01130997]
[1761341303979,4.21519876,110920.0,110910.0,0.01130997]
[1761341305159,3.99771876,110920.0,110910.0,0.01130997]
[1761341305364,4.21515876,110920.0,110910.0,0.01130997]
[1761341309036,3.99771876,110920.0,110910.0,0.01130997]
[1761341309250,3.88002667,110920.0,110910.0,0.01130997]
[1761341309438,4.21515876,110920.0,110910.0,0.01130997]
[1761341309824,3.99771876,110920.0,110910.0,0.01130997]
[1761341310041,4.21515876,110920.0,110910.0,0.01130997]
[1761341310838,4.15743876,110920.0,110910.0,0.01130997]
[1761341311032,4.21515876,110920.0,110910.0,0.01130997]
[1761341311234,4.15743876,110920.0,110910.0,0.01130997]
[1761341311440,4.21515876,110920.0,110910.0,0.01130997]
[1761341313126,4.23951808,110920.0,110910.0,0.01130997]
[1761341319350,3.90438599,110920.0,110910.0,0.01130997]
[1761341319576,4.23951808,110920.0,110910.0,0.01130997]
[1761341320298,3.90438599,110920.0,110910.0,0.01130997]
[1761341320507,4.23951808,110920.0,110910.0,0.01130997]
[1761341321145,4.02207808,110920.0,110910.0,0.01130997]
[1761341321575,4.23947808,110920.0,110910.0,0.01130997]
[1761341321907,4.02207808,110920.0,110910.0,0.01130997]
[1761341322528,4.23947808,110920.0,110910.0,0.01130997]
[1761341322712,4.02207808,110920.0,110910.0,0.01130997]
[1761341323114,3.96153648,110920.0,110910.0,0.01130997]
[1761341323314,4.17893648,110920.0,110910.0,0.01130997]
[1761341323738,3.96153648,110920.0,110910.0,0.01130997]
[1761341323921,4.17900172,110920.0,110910.0,0.01130997]
[1761341325034,3.96160172,110920.0,110910.0,0.01130997]
[1761341325237,4.17900172,110920.0,110910.0,0.01130997]
[1761341325458,4.17896172,110920.0,110910.0,0.01130997]
[1761341325675,3.96160172,110920.0,110910.0,0.01130997]
[1761341325861,4.17896172,110920.0,110910.0,0.01130997]
[1761341326277,3.96160172,110920.0,110910.0,0.01130997]
[1761341326486,4.17896172,110920.0,110910.0,0.01130997]
[1761341326888,3.96160172,110920.0,110910.0,0.01130997]
[1761341327097,4.17896172,110920.0,110910.0,0.01130997]
[1761341328462,4.12124172,110920.0,110910.0,0.01130997]
[1761341328667,4.17896172,110920.0,110910.0,0.01130997]
[1761341333015,4.20331726,110920.0,110910.0,0.01130997]
[1761341334911,4.60331726,110920.0,110910.0,0.01130997]
[1761341335786,4.20331726,110920.0,110910.0,0.01130997]
[1761341338898,3.98595726,110920.0,110910.0,0.01130997]
[1761341339099,4.20327726,110920.0,110910.0,0.01130997]
[1761341339910,4.34555726,110920.0,110910.0,0.01130997]
[1761341340105,4.40327726,110920.0,110910.0,0.01130997]
[1761341350297,4.06814517,110920.0,110910.0,0.01130997]
[1761341350499,4.40327726,110920.0,110910.0,0.01130997]
[1761341352032,4.20327726,110920.0,110910.0,0.01130997]
[1761341352774,4.53832067,110920.0,110910.0,0.01130997]
[1761341354068,4.20323292,110920.0,110910.0,0.01130997]
[1761341354354,3.65082517,110920.0,110910.0,0.01130997]
[1761341354550,0.42964914,110920.0,110910.0,0.52672411]
[1761341354771,0.18030786,110930.0,110920.0,0.18031013]
[1761341354982,0.42964687,110930.0,110910.0,0.52672411]
[1761341355188,0.42964687,110930.0,110910.0,0.51730536]
[1761341355641,0.42964687,110930.0,110920.0,0.20739147]
[1761341355847,0.27012687,110930.0,110920.0,0.20739147]
[1761341356074,0.42964687,110930.0,110920.0,0.54247922]
[1761341356933,0.42964687,110930.0,110920.0,0.54447922]
[1761341357941,0.42964687,110930.0,110920.0,0.20939147]
[1761341358553,0.27012687,110930.0,110920.0,0.20939147]
[1761341358753,0.42964687,110930.0,110920.0,0.20939147]
[1761341359333,0.42964687,110930.0,110920.0,0.54447922]
[1761341361189,0.46576939,110940.0,110920.0,0.54447922]
[1761341361379,0.33977387,110930.0,110920.0,0.54447922]
[1761341361570,0.33977387,110930.0,110920.0,0.51739788]
[1761341361811,0.15948,110930.0,110920.0,0.51739788]
[1761341362029,0.15948,110930.0,110920.0,0.54447746]
[1761341362206,0.33977387,110930.0,110920.0,0.54447746]
[1761341362803,0.15948,110930.0,110920.0,0.54447746]
[1761341362994,0.52901051,110940.0,110920.0,0.54447746]
[1761341363175,0.15948,110930.0,110920.0,0.54447746]
[1761341363371,0.15948,110930.0,110920.0,0.51739788]
[1761341363753,0.15948,110930.0,110920.0,0.54447744]
[1761341365193,0.33977387,110930.0,110920.0,0.54447744]
[1761341366881,0.18029387,110930.0,110920.0,0.54447744]
[1761341367205,0.15948,110930.0,110920.0,0.54447744]
[1761341367807,0.52901051,110940.0,110920.0,0.54447744]
[1761341368222,0.68845051,110940.0,110920.0,0.51739788]
[1761341368435,0.52901051,110940.0,110920.0,0.51739788]
[1761341368638,0.68845051,110940.0,110930.0,0.02707907]
[1761341368998,0.68945051,110940.0,110930.0,0.02707907]
[1761341369195,0.69045051,110940.0,110930.0,0.02707907]
[1761341369604,0.68945051,110940.0,110930.0,0.02707907]
[1761341369842,0.68845051,110940.0,110930.0,0.02707907]
[1761341370141,0.69045051,110940.0,110930.0,0.02707907]
[1761341372278,1.02553826,110940.0,110930.0,0.02707907]
[1761341378082,0.2519,110940.0,110930.0,0.56049007]
[1761341378290,0.2519,110940.0,110930.0,0.54246069]
[1761341378530,0.4113,110940.0,110930.0,0.54246069]
[1761341378742,0.2519,110940.0,110930.0,0.54246069]
[1761341378990,0.2499,110940.0,110930.0,0.54246069]
[1761341379136,0.2499,110940.0,110930.0,0.54546069]
[1761341379569,0.2499,110940.0,110930.0,0.54246069]
[1761341379775,0.2499,110940.0,110930.0,0.54546069]
[1761341379974,0.2499,110940.0,110930.0,0.70186069]
[1761341380381,0.2499,110940.0,110930.0,0.70686069]
[1761341380818,0.18927144,110960.0,110940.0,0.18027762]
[1761341380949,0.18927144,110960.0,110950.0,0.51534912]
[1761341381158,0.34867144,110960.0,110950.0,0.18026137]
[1761341381574,0.34867144,110960.0,110950.0,0.2073344]
[1761341382209,0.34867144,110960.0,110950.0,0.54256863]
[1761341382428,0.34867144,110960.0,110950.0,0.54356863]
[1761341383269,0.34867144,110960.0,110950.0,0.54256863]
[1761341383679,0.34867144,110960.0,110950.0,0.54756863]
[1761341386818,0.18927144,110960.0,110950.0,0.54756863]
[1761341387050,0.34863144,110960.0,110950.0,0.54756863]
[1761341388161,0.15849222,110960.0,110950.0,0.54756863]
[1761341388524,0.33876755,110960.0,110950.0,0.54756863]
[1761341388951,0.3477798,110960.0,110950.0,0.54756863]
[1761341391071,0.43914033,110970.0,110950.0,0.54756863]
[1761341391283,0.58944889,110970.0,110960.0,0.51533288]
[1761341391503,0.58944889,110970.0,110960.0,0.18024513]
[1761341391714,0.58944889,110970.0,110960.0,0.20731604]
[1761341392334,0.43012889,110970.0,110960.0,0.54240379]
[1761341392568,0.58944889,110970.0,110960.0,0.54540379]
[1761341394147,0.40922,110970.0,110960.0,0.54540379]
[1761341394332,0.58944889,110970.0,110960.0,0.54540379]
[1761341394962,0.2499,110970.0,110960.0,0.88049154]
[1761341395165,0.2499,110970.0,110960.0,0.54540379]
[1761341396051,0.33958715,110980.0,110960.0,0.54540379]
[1761341396454,0.33958715,110980.0,110960.0,0.51833288]
[1761341396856,0.33958715,110980.0,110970.0,0.02706793]
[1761341398417,0.33958715,110980.0,110970.0,0.02806793]
[1761341398660,0.18026715,110980.0,110970.0,0.02706793]
[1761341398907,0.18026715,110980.0,110970.0,0.03206793]
[1761341401603,0.18026715,110980.0,110970.0,0.36715568]
[1761341402721,0.18026715,110980.0,110970.0,0.54738457]
[1761341403153,0.18928489,110990.0,110970.0,0.70666457]
[1761341403404,0.4383839,110990.0,110970.0,0.70666457]
[1761341403609,0.4383839,110990.0,110970.0,0.67959664]
[1761341404042,0.4383839,110990.0,110980.0,0.02706659]
[1761341405536,0.43920297,111000.0,110980.0,0.56038825]
[1761341405744,0.43920297,111000.0,110990.0,0.51528416]
[1761341405943,0.33944904,111010.0,110990.0,0.51528416]
[1761341406121,0.42926805,111010.0,110990.0,0.51528416]
[1761341406347,0.42926805,111010.0,110990.0,0.70158616]
[1761341406348,0.27002805,111010.0,110990.0,0.70158616]
[1761341406569,0.18018018,111000.0,110990.0,0.67452416]
[1761341406993,0.18018018,111000.0,110990.0,0.67467064]
[1761341407199,0.18018018,111000.0,110990.0,0.67667064]
[1761341407406,0.18018018,111000.0,110990.0,0.67467064]
[1761341407841,0.18018018,111000.0,110990.0,0.67867064]
[1761341408288,0.33940394,111010.0,111000.0,0.51526793]
[1761341408504,0.18923168,111020.0,111000.0,0.51526793]
[1761341408716,0.18923168,111020.0,111010.0,0.33508775]
[1761341408928,0.00900738,111020.0,111010.0,0.67449169]
[1761341409139,0.59838971,111030.0,111010.0,0.67449169]
[1761341409363,0.68820872,111030.0,111010.0,0.67449169]
[1761341409567,0.18924971,111030.0,111010.0,0.67449169]
[1761341409774,0.34848971,111030.0,111010.0,0.67449169]
[1761341410185,0.34848971,111030.0,111010.0,0.67549169]
[1761341410392,0.34848971,111030.0,111010.0,0.67449169]
[1761341410622,0.34848971,111030.0,111010.0,0.67549169]
[1761341411244,0.34848971,111030.0,111020.0,0.33508775]
[1761341411673,0.34848971,111030.0,111020.0,0.51523547]
[1761341411674,0.18924971,111030.0,111020.0,0.51523547]
[1761341412779,0.18924971,111030.0,111010.0,0.67370009]
[1761341412969,0.19024971,111030.0,111010.0,0.67370009]
[1761341413177,0.19024971,111030.0,111020.0,0.18014772]
[1761341413395,0.19024971,111030.0,111010.0,0.67370009]
[1761341413612,0.18040905,111040.0,111020.0,0.53245864]
[1761341413833,0.42942806,111040.0,111020.0,0.51444387]
[1761341413970,0.001,111030.0,111020.0,0.51444387]
[1761341414192,0.42942806,111040.0,111020.0,0.51444387]
[1761341414568,0.42942806,111040.0,111020.0,0.51544387]
[1761341414910,0.33951527,111040.0,111030.0,0.19814463]
[1761341415112,0.33951527,111040.0,111030.0,0.18013149]
[1761341415946,0.34051527,111040.0,111030.0,0.18013149]
[1761341416194,0.18031527,111040.0,111030.0,0.18027797]
[1761341416609,0.18131527,111040.0,111030.0,0.18027797]
[1761341416803,0.18131527,111040.0,111030.0,0.00014648]
[1761341420565,0.60543043,111040.0,111030.0,0.00014648]
[1761341423895,0.27113428,111040.0,111030.0,0.00014648]
[1761341424163,0.34043527,111040.0,111030.0,0.00014648]
[1761341425131,0.18131527,111040.0,111030.0,0.18027797]
[1761341425301,0.18131527,111040.0,111030.0,0.00014648]
[1761341428851,0.18131527,111040.0,111030.0,0.18027797]
[1761341431455,0.0002,111040.0,111030.0,0.18027797]
[1761341431712,0.0012,111040.0,111030.0,0.18027797]
[1761341431936,0.0002,111040.0,111030.0,0.18027797]
[1761341432346,0.18031527,111040.0,111030.0,0.18127797]
[1761341433617,0.0002,111040.0,111030.0,0.51557412]
[1761341433830,0.0002,111040.0,111030.0,0.67465412]
[1761341434892,0.0002,111040.0,111030.0,0.70170445]
[1761341438791,0.0002,111040.0,111030.0,0.3674083]
[1761341440388,0.0002,111040.0,111030.0,1.04044036]
[1761341443302,0.0002,111040.0,111030.0,0.70614421]
[1761341443516,0.0002,111040.0,111030.0,1.04044036]
[1761341444307,0.0002,111040.0,111030.0,1.46455552]
[1761341445523,0.0002,111040.0,111030.0,1.46355552]
[1761341446445,0.0002,111040.0,111030.0,1.46455552]
[1761341446585,0.0002,111040.0,111030.0,1.52219552]
[1761341446805,0.0002,111040.0,111030.0,1.52619552]
[1761341448113,0.0002,111040.0,111030.0,1.57448017]
[1761341453387,0.57958733,111080.0,111050.0,0.18008337]
[1761341453589,0.57958733,111080.0,111070.0,0.33429615]
[1761341453590,0.42995073,111080.0,111070.0,0.33429615]
[1761341453735,0.42995073,111080.0,111070.0,0.51436277]
[1761341454196,0.42995073,111080.0,111070.0,0.18006662]
[1761341454483,0.2529,111080.0,111070.0,0.18006662]
[1761341454644,0.2499,111080.0,111070.0,0.51436277]
[1761341454835,0.25039237,111080.0,111070.0,0.51436277]
[1761341455015,0.25339237,111080.0,111070.0,0.18006662]
[1761341455280,0.25039237,111080.0,111070.0,0.18006662]
[1761341456220,0.18054278,111080.0,111070.0,0.18006662]
[1761341456644,0.18054278,111080.0,111070.0,0.33906662]
[1761341458886,0.18054278,111080.0,111060.0,0.88142287]
[1761341459094,0.27036179,111080.0,111060.0,0.67908283]
[1761341459302,0.27036179,111080.0,111060.0,1.01337898]
[1761341460028,0.27336179,111080.0,111060.0,0.67908283]
[1761341460229,0.18006662,111070.0,111060.0,0.67908283]
[1761341461332,0.18006662,111070.0,111060.0,0.52008283]
[1761341463287,0.18106662,111070.0,111060.0,0.52008283]
[1761341463511,0.18008283,111060.0,111040.0,0.18907454]
[1761341463731,0.18008283,111060.0,111040.0,0.34803454]
[1761341463945,0.18008283,111060.0,111040.0,0.68233069]
[1761341469951,0.17964683,111060.0,111040.0,0.68233069]
[1761341473789,0.33860683,111060.0,111040.0,0.52337069]
[1761341473933,0.33860683,111060.0,111040.0,0.68233069]
[1761341474816,0.33860683,111060.0,111040.0,0.68217931]
[1761341476113,0.18009905,111050.0,111030.0,0.17901388]
[1761341476316,0.18009905,111050.0,111030.0,1.01211865]
[1761341476703,0.18011527,111040.0,111030.0,1.01211865]
[1761341477900,0.18011527,111040.0,111030.0,1.01326529]
[1761341478116,0.18011527,111040.0,111030.0,1.01526529]
[1761341478485,0.18011527,111040.0,111030.0,0.85530529]
[1761341478712,0.18011527,111040.0,111030.0,0.52216052]
[1761341479114,0.18011527,111040.0,111030.0,0.85630529]
[1761341479318,0.18011527,111040.0,111030.0,0.85430529]
[1761341479596,0.18011527,111040.0,111030.0,0.85830529]
[1761341479818,0.76303905,111040.0,111030.0,0.00114664]
[1761341480042,0.42889428,111040.0,111030.0,0.00014664]
[1761341480253,0.42889428,111040.0,111030.0,0.00214664]
[1761341480479,0.42889428,111040.0,111030.0,0.00314664]
[1761341480926,0.42889428,111040.0,111030.0,0.00014664]
[1761341481768,0.76303905,111040.0,111030.0,0.00014664]
[1761341483012,0.42889428,111040.0,111030.0,0.00014664]
[1761341483632,0.76303905,111040.0,111030.0,0.00014664]
[1761341484178,0.79009309,111040.0,111030.0,0.00014664]
[1761341491693,0.45594832,111040.0,111030.0,0.00014664]
[1761341491868,1.12423786,111040.0,111030.0,0.00014664]
[1761341498854,4.45838263,111040.0,111030.0,0.00014664]
[1761341498980,4.12423786,111040.0,111030.0,0.00014664]
[1761341499606,4.1436466,111040.0,111030.0,0.00014664]
[1761341500218,4.1466466,111040.0,111030.0,0.00014664]
[1761341500588,4.18282888,111040.0,111030.0,0.00014664]
[1761341500791,4.27264789,111040.0,111030.0,0.00014664]
[1761341503074,4.61264789,111040.0,111030.0,0.00014664]
[1761341504076,4.94679266,111040.0,111030.0,0.00014664]
[1761341505287,4.61264789,111040.0,111030.0,0.00014664]
[1761341506255,4.79288789,111040.0,111030.0,0.00014664]
[1761341506955,4.70306888,111040.0,111030.0,0.00014664]
[1761341507175,4.58050888,111040.0,111030.0,0.00014664]
[1761341508512,4.68050888,111040.0,111030.0,0.00014664]
[1761341509179,4.66110014,111040.0,111030.0,0.00014664]
[1761341509413,4.60342014,111040.0,111030.0,0.00014664]
[1761341509617,4.68051208,111040.0,111030.0,0.00014664]
[1761341511144,4.6443298,111040.0,111030.0,0.00014664]
[1761341519754,4.61457881,111040.0,111030.0,0.00014664]
[1761341525250,5.07472487,111040.0,111030.0,0.00014664]
[1761341525471,5.0989898,111040.0,111030.0,0.00014664]
[1761341526576,5.07193576,111040.0,111030.0,0.00014664]
[1761341529630,5.08002407,111040.0,111030.0,0.00014664]
[1761341531897,4.99020506,111040.0,111030.0,0.00014664]
[1761341532317,4.65606029,111040.0,111030.0,0.00014664]
[1761341534271,4.99020506,111040.0,111030.0,0.00014664]
[1761341534456,5.01451875,111040.0,111030.0,0.00014664]
[1761341536122,4.99020506,111040.0,111030.0,0.00014664]
[1761341536334,5.08002407,111040.0,111030.0,0.00014664]
[1761341536882,4.74654432,111040.0,111030.0,0.00014664]
[1761341538612,0.18019424,111000.0,110970.0,0.22871355]
[1761341538846,0.18020879,110990.0,110970.0,0.5688602]
[1761341539056,0.18020879,110990.0,110970.0,0.2288602]
[1761341539266,0.18020879,110990.0,110970.0,0.52036977]
[1761341539448,0.18020879,110990.0,110970.0,0.85484705]
[1761341543767,0.18021265,110980.0,110970.0,0.00014665]
[1761341544198,0.33913265,110980.0,110970.0,0.00014665]
[1761341544881,0.67360993,110980.0,110970.0,0.00014665]
[1761341545072,0.76342894,110980.0,110970.0,0.00114665]
[1761341545345,0.76342894,110980.0,110970.0,0.00514665]
[1761341545992,0.76342894,110980.0,110970.0,0.00014665]
[1761341550463,3.76342894,110980.0,110970.0,0.00014665]
[1761341551760,3.42895166,110980.0,110970.0,0.00014665]
[1761341552273,3.76895166,110980.0,110970.0,0.00014665]
[1761341554842,3.61003166,110980.0,110970.0,0.00014665]
[1761341555024,3.82663166,110980.0,110970.0,0.00014665]
[1761341556444,4.07653166,110980.0,110970.0,0.00014665]
[1761341559766,0.51993166,110980.0,110970.0,0.33462393]
[1761341559979,0.58903265,110980.0,110970.0,0.51485282]
[1761341561279,0.58903265,110980.0,110970.0,0.51585282]
[1761341561490,0.58903265,110980.0,110970.0,0.51985282]
[1761341562738,0.43011265,110980.0,110970.0,0.51985282]
[1761341562933,0.58903265,110980.0,110970.0,0.51985282]
[1761341564072,0.43011265,110980.0,110970.0,0.51985282]
[1761341564327,0.58903265,110980.0,110970.0,0.51985282]
[1761341565341,0.43011265,110980.0,110970.0,0.51985282]
[1761341569594,0.43011265,110980.0,110970.0,0.67877282]
[1761341572038,0.2499,110980.0,110970.0,0.67877282]
[1761341572500,0.43011265,110980.0,110970.0,0.67877282]
[1761341573127,0.43011265,110980.0,110970.0,0.16406665]
[1761341573482,0.43011265,110980.0,110970.0,0.00514665]
[1761341580259,0.51993166,110980.0,110970.0,0.00514665]
[1761341580463,3.85440894,110980.0,110970.0,0.00514665]
[1761341581028,4.05779934,110980.0,110970.0,0.00514665]
[1761341581236,4.05779934,110980.0,110970.0,0.00014665]
[1761341581679,4.05779934,110980.0,110970.0,0.00214665]
[1761341582365,4.05879934,110980.0,110970.0,0.00214665]
[1761341582576,4.14861835,110980.0,110970.0,0.00214665]
[1761341582816,4.14861835,110980.0,110970.0,0.00014665]
[1761341583317,4.14861126,110980.0,110970.0,0.00014665]
[1761341583716,4.15161126,110980.0,110970.0,0.00014665]
[1761341591248,4.48608854,110980.0,110970.0,0.00014665]
[1761341592030,4.88608854,110980.0,110970.0,0.00014665]
[1761341596780,5.22164912,110980.0,110970.0,0.00014665]
[1761341600791,5.2559254,110980.0,110970.0,0.00014665]
[1761341601992,5.4362854,110980.0,110970.0,0.00014665]
[1761341602618,5.46870058,110980.0,110970.0,0.00014665]
[1761341603718,5.23260559,110980.0,110970.0,0.00014665]
[1761341603959,5.41281824,110980.0,110970.0,0.00014665]
[1761341606523,5.01281824,110980.0,110970.0,0.00014665]
[1761341608233,5.21281824,110980.0,110970.0,0.00014665]
[1761341609310,5.24523342,110980.0,110970.0,0.00014665]
[1761341610272,4.93708086,110980.0,110970.0,0.00014665]
[1761341612063,4.54012086,110980.0,110970.0,0.00014665]
[1761341612270,4.93708086,110980.0,110970.0,0.00014665]
[1761341613797,4.94521975,110980.0,110970.0,0.00014665]
[1761341615402,4.96952257,110980.0,110970.0,0.00014665]
[1761341615647,5.02270291,110980.0,110970.0,0.00014665]
[1761341618180,4.99840009,110980.0,110970.0,0.00014665]
[1761341624763,5.02547537,110980.0,110970.0,0.00014665]
[1761341625181,5.04978838,110980.0,110970.0,0.00014665]
[1761341626110,5.04978822,110980.0,110970.0,0.00014665]
[1761341630802,4.65282822,110980.0,110970.0,0.00014665]
[1761341631005,3.77415594,110980.0,110970.0,0.00014665]
[1761341631214,4.11415594,110980.0,110970.0,0.00014665]
[1761341631386,3.99317838,110980.0,110970.0,0.33498503]
[1761341631595,3.62886553,110980.0,110970.0,0.33498503]
[1761341631963,3.62886553,110980.0,110970.0,0.00014665]
[1761341632605,0.42886553,110980.0,110970.0,0.00014665]
[1761341633232,0.4094445,110980.0,110970.0,0.00014665]
[1761341635786,0.23792879,110990.0,110970.0,0.5332368]
[1761341635998,3.0,110980.0,110970.0,0.51521392]
[1761341636217,0.4288678,110990.0,110980.0,0.18021265]
[1761341636453,0.4288678,110990.0,110980.0,0.33483838]
[1761341636667,0.2700278,110990.0,110980.0,0.51505103]
[1761341636892,0.34804324,111000.0,110980.0,0.84988941]
[1761341637167,0.43786225,111000.0,110980.0,0.51505103]
[1761341637413,0.43786225,111000.0,110990.0,0.33483838]
[1761341638263,0.43786225,111000.0,110980.0,0.51505103]
[1761341639368,0.43886225,111000.0,110980.0,0.51505103]
[1761341639562,0.43986225,111000.0,110980.0,0.51505103]
[1761341640061,0.68976225,111000.0,110980.0,0.51505103]
[1761341640406,0.68876225,111000.0,110990.0,0.51503479]
[1761341640768,0.68776225,111000.0,110990.0,0.51503479]
[1761341642446,0.68776225,111000.0,110990.0,0.51703479]
[1761341643388,0.2499,111000.0,110990.0,0.51703479]
[1761341646142,0.2499,111000.0,110990.0,0.67583479]
[1761341646604,0.43008018,111000.0,110990.0,0.34099641]
[1761341646831,0.43008018,111000.0,110990.0,0.36805953]
[1761341647055,0.2499,111000.0,110990.0,0.36805953]
[1761341647276,0.2499,111000.0,110990.0,0.70289791]
[1761341652795,0.00900738,111020.0,111010.0,0.18016394]
[1761341653040,0.09882639,111020.0,111010.0,0.51500232]
[1761341653699,0.09882639,111020.0,111010.0,0.54206217]
[1761341653911,0.27897411,111020.0,111010.0,0.54206217]
[1761341654118,0.27902332,111020.0,111010.0,0.54206217]
[1761341654767,0.27902332,111020.0,111010.0,0.54406217]
[1761341656761,0.27902332,111020.0,111010.0,0.20922379]
[1761341661903,4.921e-05,111020.0,111010.0,0.70235674]
[1761341663217,3.622398,111020.0,111010.0,0.02905985]
[1761341663485,3.60438889,111020.0,111010.0,0.002]
[1761341663692,3.63938661,111020.0,111010.0,0.002]
[1761341663902,3.60438889,111020.0,111010.0,0.002]
[1761341664130,3.60438889,111020.0,111000.0,0.02706307]
[1761341664131,3.18016394,111010.0,111000.0,0.02706307]
[1761341664338,3.42874295,111010.0,111000.0,0.02706307]
[1761341664939,0.18018018,111000.0,110990.0,0.34796461]
[1761341665374,0.18018018,111000.0,110990.0,0.37502768]
[1761341667352,0.18018018,111000.0,110990.0,0.37602768]
[1761341671075,0.18018018,111000.0,110990.0,0.21726768]
[1761341671266,0.18018018,111000.0,110990.0,0.18682307]
[1761341671470,0.18018018,111000.0,110990.0,0.36701948]
[1761341675263,0.18018018,111000.0,110990.0,0.20825948]
[1761341675458,0.26999919,111000.0,110990.0,0.02806307]
[1761341676951,0.26999919,111000.0,110990.0,0.18682307]
[1761341677333,0.26999919,111000.0,110990.0,0.02806307]
[1761341678903,0.43006394,111010.0,110990.0,0.56065207]
[1761341679112,0.43006394,111010.0,111000.0,0.15876]
[1761341679725,0.43006394,111010.0,111000.0,0.18582043]
[1761341681469,0.43006394,111010.0,111000.0,0.18882043]
[1761341684754,0.43006394,111010.0,111000.0,0.16176]
[1761341687138,0.51988295,111010.0,111000.0,0.16172]
[1761341689568,0.51988295,111010.0,111000.0,0.003]
[1761341691536,0.51982347,111010.0,111000.0,0.003]
[1761341693292,0.26992347,111010.0,111000.0,0.003]
[1761341693497,0.18016394,111010.0,111000.0,0.51755313]
[1761341693699,0.18016394,111010.0,111000.0,0.54461098]
[1761341693907,3.0,111010.0,111000.0,0.54461098]
[1761341699513,4.921e-05,111020.0,111010.0,0.18016394]
[1761341699706,4.921e-05,111020.0,111010.0,0.67325689]
[1761341700958,4.921e-05,111020.0,111010.0,0.70031269]